[Event "Titled Tuesday Blitz November 22 Late 2022"]
[White "Martinez Alcantara, Jose Eduardo"]
[Black "Naroditsky, Daniel"]
[WhiteFideId "3805662"]
[BlackFideId "2026961"]
[WhiteElo "2705"]
[BlackElo "2628"]
[Result "1/2-1/2"]
[Round "07"]
[TimeControl "180+1"]
[Date "2022.11.22"]
[WhiteClock "0:00:10"]
[BlackClock "0:00:03"]

1. e4 {[%clk 0:03:00]}  c6 {[%clk 0:02:58]} 2. d4 {[%clk 0:02:59]}  d5 {[%clk 0:02:59]} 3. e5 {[%clk 0:02:59]}  c5 {[%clk 0:02:59]} 4. dxc5 {[%clk 0:02:58]}  e6 {[%clk 0:02:59]} 5. Qg4 {[%clk 0:02:57]}  Nd7 {[%clk 0:02:54]} 6. Bb5 {[%clk 0:02:53]}  Qc7 {[%clk 0:02:32]} 7. Be3 {[%clk 0:02:43]}  Qxe5 {[%clk 0:02:19]} 8. Nc3 {[%clk 0:02:38]}  Nf6 {[%clk 0:02:19]} 9. Qa4 {[%clk 0:02:37]}  Qc7 {[%clk 0:02:17]} 10. b4 {[%clk 0:02:14]}  Be7 {[%clk 0:02:17]} 11. Nge2 {[%clk 0:02:14]}  O-O {[%clk 0:02:06]} 12. O-O {[%clk 0:02:14]}  e5 {[%clk 0:01:44]} 13. Bg5 {[%clk 0:01:57]}  d4 {[%clk 0:01:12]} 14. Ne4 {[%clk 0:01:57]}  Nxe4 {[%clk 0:01:02]} 15. Bxe7 {[%clk 0:01:55]}  Nb6 {[%clk 0:01:03]} 16. cxb6 {[%clk 0:01:44]}  Qxe7 {[%clk 0:01:04]} 17. bxa7 {[%clk 0:01:22]}  b6 {[%clk 0:01:01]} 18. Bc6 {[%clk 0:01:14]}  Rxa7 {[%clk 0:01:01]} 19. Qb5 {[%clk 0:01:14]}  Ba6 {[%clk 0:00:55]} 20. Qxb6 {[%clk 0:01:09]}  Bxe2 {[%clk 0:00:50]} 21. Bxe4 {[%clk 0:01:10]}  Bxf1 {[%clk 0:00:50]} 22. Kxf1 {[%clk 0:01:09]}  Ra3 {[%clk 0:00:42]} 23. Bd5 {[%clk 0:01:07]}  g6 {[%clk 0:00:34]} 24. Re1 {[%clk 0:01:05]}  Re8 {[%clk 0:00:14]} 25. g3 {[%clk 0:00:34]}  Kg7 {[%clk 0:00:15]} 26. Kg2 {[%clk 0:00:33]}  Qf6 {[%clk 0:00:14]} 27. Qb5 {[%clk 0:00:29]}  Rc8 {[%clk 0:00:12]} 28. Bb3 {[%clk 0:00:28]}  Qc6+ {[%clk 0:00:02]} 29. Qxc6 {[%clk 0:00:28]}  Rxc6 {[%clk 0:00:03]} 30. Rxe5 {[%clk 0:00:28]}  Rb6 {[%clk 0:00:04]} 31. Re7 {[%clk 0:00:25]}  Rxb4 {[%clk 0:00:04]} 32. Rxf7+ {[%clk 0:00:25]}  Kh8 {[%clk 0:00:04]} 33. Rf8+ {[%clk 0:00:25]}  Kg7 {[%clk 0:00:04]} 34. Rf7+ {[%clk 0:00:26]}  Kh8 {[%clk 0:00:05]} 35. Rd7 {[%clk 0:00:24]}  Ra8 {[%clk 0:00:04]} 36. h4 {[%clk 0:00:22]}  Rc8 {[%clk 0:00:03]} 37. Rd5 {[%clk 0:00:18]}  Ra8 {[%clk 0:00:03]} 38. h5 {[%clk 0:00:18]}  Kg7 {[%clk 0:00:03]} 39. Rd7+ {[%clk 0:00:18]}  Kh6 {[%clk 0:00:03]} 40. hxg6 {[%clk 0:00:18]}  hxg6 {[%clk 0:00:04]} 41. Rd6 {[%clk 0:00:18]}  Kg7 {[%clk 0:00:05]} 42. Rd7+ {[%clk 0:00:18]}  Kh6 {[%clk 0:00:03]} 43. f4 {[%clk 0:00:17]}  Ra6 {[%clk 0:00:03]} 44. Kf3 {[%clk 0:00:15]}  g5 {[%clk 0:00:02]} 45. Ke4 {[%clk 0:00:12]}  gxf4 {[%clk 0:00:02]} 46. gxf4 {[%clk 0:00:13]}  d3+ {[%clk 0:00:02]} 47. Kxd3 {[%clk 0:00:13]}  Rxf4 {[%clk 0:00:03]} 48. Kc3 {[%clk 0:00:12]}  Kg6 {[%clk 0:00:03]} 49. a4 {[%clk 0:00:11]}  Kf6 {[%clk 0:00:02]} 50. Rf7+ {[%clk 0:00:11]}  Ke5 {[%clk 0:00:03]} 51. Rh7 {[%clk 0:00:11]}  Rc6+ {[%clk 0:00:02]} 52. Kb2 {[%clk 0:00:11]}  Kd6 {[%clk 0:00:03]} 53. Rh5 {[%clk 0:00:11]}  Rf6 {[%clk 0:00:02]} 54. Rd5+ {[%clk 0:00:11]}  Kc7 {[%clk 0:00:03]} 55. Rh5 {[%clk 0:00:11]}  Kd6 {[%clk 0:00:02]} 56. Rd5+ {[%clk 0:00:11]}  Kc7 {[%clk 0:00:02]} 57. Rg5 {[%clk 0:00:12]}  Kd6 {[%clk 0:00:03]} 58. Rd5+ {[%clk 0:00:10]} 1/2-1/2


[Site "https://www.chess.com"]

[Event "Titled Tuesday Blitz November 22 Late 2022"]
[White "Melkumyan, Hrant"]
[Black "Bortnyk, Olexandr"]
[WhiteFideId "13302485"]
[BlackFideId "14120828"]
[WhiteElo "2604"]
[BlackElo "2723"]
[Result "1/2-1/2"]
[Round "07"]
[TimeControl "180+1"]
[Date "2022.11.22"]
[WhiteClock "0:00:10"]
[BlackClock "0:00:03"]

1. d4 {[%clk 0:03:00]}  d6 {[%clk 0:02:56]} 2. c4 {[%clk 0:02:58]}  e5 {[%clk 0:02:53]} 3. Nc3 {[%clk 0:02:55]}  exd4 {[%clk 0:02:51]} 4. Qxd4 {[%clk 0:02:56]}  Nc6 {[%clk 0:02:51]} 5. Qd2 {[%clk 0:02:56]}  g6 {[%clk 0:02:51]} 6. b3 {[%clk 0:02:56]}  Bg7 {[%clk 0:02:51]} 7. Bb2 {[%clk 0:02:57]}  Nf6 {[%clk 0:02:51]} 8. g3 {[%clk 0:02:56]}  O-O {[%clk 0:02:50]} 9. Bg2 {[%clk 0:02:57]}  Re8 {[%clk 0:02:39]} 10. Nh3 {[%clk 0:02:57]}  d5 {[%clk 0:02:39]} 11. cxd5 {[%clk 0:02:49]}  Bxh3 {[%clk 0:02:15]} 12. Bxh3 {[%clk 0:02:48]}  Nxd5 {[%clk 0:02:16]} 13. Nxd5 {[%clk 0:02:33]}  Bxb2 {[%clk 0:02:17]} 14. Rd1 {[%clk 0:02:29]}  Nd4 {[%clk 0:01:51]} 15. Qxb2 {[%clk 0:02:28]}  Qxd5 {[%clk 0:01:47]} 16. O-O {[%clk 0:02:28]}  Rad8 {[%clk 0:01:42]} 17. Bg2 {[%clk 0:02:24]}  Qe5 {[%clk 0:01:40]} 18. Kh1 {[%clk 0:01:55]}  Qxe2 {[%clk 0:01:39]} 19. Rd2 {[%clk 0:01:40]}  Qe5 {[%clk 0:01:10]} 20. Rfd1 {[%clk 0:01:39]}  c5 {[%clk 0:01:01]} 21. Bxb7 {[%clk 0:01:39]}  Qh5 {[%clk 0:00:37]} 22. Bg2 {[%clk 0:01:30]}  Nf3 {[%clk 0:00:34]} 23. Bxf3 {[%clk 0:01:18]}  Qxf3+ {[%clk 0:00:35]} 24. Kg1 {[%clk 0:01:19]}  Rxd2 {[%clk 0:00:29]} 25. Qxd2 {[%clk 0:01:16]}  Re2 {[%clk 0:00:30]} 26. Qd8+ {[%clk 0:01:11]}  Kg7 {[%clk 0:00:30]} 27. Rf1 {[%clk 0:01:09]}  Rxa2 {[%clk 0:00:30]} 28. Qd6 {[%clk 0:01:02]}  Qc3 {[%clk 0:00:27]} 29. Qc7 {[%clk 0:00:55]}  a5 {[%clk 0:00:25]} 30. h4 {[%clk 0:00:53]}  h5 {[%clk 0:00:25]} 31. Qf4 {[%clk 0:00:48]}  Qxb3 {[%clk 0:00:14]} 32. Qe5+ {[%clk 0:00:47]}  Kh7 {[%clk 0:00:14]} 33. Qxc5 {[%clk 0:00:47]}  a4 {[%clk 0:00:15]} 34. Re1 {[%clk 0:00:34]}  a3 {[%clk 0:00:15]} 35. Qd4 {[%clk 0:00:27]}  Qb2 {[%clk 0:00:15]} 36. Qa7 {[%clk 0:00:21]}  Kg7 {[%clk 0:00:11]} 37. Re7 {[%clk 0:00:20]}  Ra1+ {[%clk 0:00:10]} 38. Kh2 {[%clk 0:00:20]}  Qf6 {[%clk 0:00:06]} 39. Re2 {[%clk 0:00:19]}  Kh7 {[%clk 0:00:03]} 40. Re7 {[%clk 0:00:12]}  Kg8 {[%clk 0:00:03]} 41. Re8+ {[%clk 0:00:12]}  Kg7 {[%clk 0:00:04]} 42. Re2 {[%clk 0:00:10]}  Kh7 {[%clk 0:00:02]} 43. Re7 {[%clk 0:00:10]}  Kg8 {[%clk 0:00:02]} 44. Re8+ {[%clk 0:00:11]}  Kg7 {[%clk 0:00:03]} 45. Re2 {[%clk 0:00:10]} 1/2-1/2


[Site "https://www.chess.com"]

[Event "Titled Tuesday Blitz November 22 Late 2022"]
[White "Milchev, Nikolay"]
[Black "Yeritsyan, Hayk"]
[WhiteFideId "2906090"]
[BlackFideId "13307320"]
[WhiteElo "2449"]
[BlackElo "2388"]
[Result "1/2-1/2"]
[Round "07"]
[TimeControl "180+1"]
[Date "2022.11.23"]
[WhiteClock "0:00:50"]
[BlackClock "0:00:04"]

1. Nf3 {[%clk 0:03:00]}  d5 {[%clk 0:02:59]} 2. c4 {[%clk 0:03:01]}  c6 {[%clk 0:02:59]} 3. cxd5 {[%clk 0:03:01]}  cxd5 {[%clk 0:03:00]} 4. d4 {[%clk 0:03:02]}  Nf6 {[%clk 0:03:01]} 5. Nc3 {[%clk 0:03:03]}  Nc6 {[%clk 0:03:01]} 6. Bf4 {[%clk 0:03:03]}  Bf5 {[%clk 0:03:01]} 7. Rc1 {[%clk 0:03:02]}  e6 {[%clk 0:03:01]} 8. Qb3 {[%clk 0:03:01]}  Qc8 {[%clk 0:02:50]} 9. e3 {[%clk 0:03:01]}  Be7 {[%clk 0:02:48]} 10. Bb5 {[%clk 0:02:58]}  O-O {[%clk 0:02:48]} 11. h3 {[%clk 0:02:56]}  a6 {[%clk 0:02:47]} 12. Bxc6 {[%clk 0:02:56]}  Qxc6 {[%clk 0:02:44]} 13. O-O {[%clk 0:02:57]}  b5 {[%clk 0:02:36]} 14. Ne4 {[%clk 0:02:48]}  Qb7 {[%clk 0:02:34]} 15. Rc7 {[%clk 0:02:46]}  Qb6 {[%clk 0:02:13]} 16. Ng3 {[%clk 0:02:44]}  Bd6 {[%clk 0:02:10]} 17. Bxd6 {[%clk 0:02:44]}  Qxd6 {[%clk 0:02:08]} 18. Rfc1 {[%clk 0:02:44]}  Be4 {[%clk 0:02:07]} 19. Ne5 {[%clk 0:02:43]}  h6 {[%clk 0:01:58]} 20. R1c6 {[%clk 0:02:42]}  Qd8 {[%clk 0:01:58]} 21. f3 {[%clk 0:02:35]}  Bh7 {[%clk 0:01:57]} 22. Qc3 {[%clk 0:02:33]}  Ne8 {[%clk 0:01:54]} 23. Rd7 {[%clk 0:02:26]}  Qg5 {[%clk 0:01:51]} 24. Kf2 {[%clk 0:02:15]}  Nf6 {[%clk 0:01:48]} 25. Rdc7 {[%clk 0:02:10]}  Qh4 {[%clk 0:01:46]} 26. Rc8 {[%clk 0:01:47]}  g5 {[%clk 0:01:17]} 27. Rxa8 {[%clk 0:01:45]}  Rxa8 {[%clk 0:01:15]} 28. Rc8+ {[%clk 0:01:46]}  Rxc8 {[%clk 0:01:15]} 29. Qxc8+ {[%clk 0:01:46]}  Kg7 {[%clk 0:01:16]} 30. Qc7 {[%clk 0:01:40]}  Bg6 {[%clk 0:01:08]} 31. Nxg6 {[%clk 0:01:38]}  Kxg6 {[%clk 0:01:04]} 32. Ke2 {[%clk 0:01:38]}  Nh5 {[%clk 0:00:56]} 33. Nf1 {[%clk 0:01:33]}  Kg7 {[%clk 0:00:42]} 34. b4 {[%clk 0:01:33]}  Kg6 {[%clk 0:00:36]} 35. Qd6 {[%clk 0:01:29]}  Kg7 {[%clk 0:00:34]} 36. a3 {[%clk 0:01:26]}  Kg6 {[%clk 0:00:34]} 37. Qxa6 {[%clk 0:01:18]}  Ng3+ {[%clk 0:00:34]} 38. Nxg3 {[%clk 0:01:19]}  Qxg3 {[%clk 0:00:34]} 39. Kf1 {[%clk 0:01:19]}  Qh2 {[%clk 0:00:32]} 40. Qxb5 {[%clk 0:01:18]}  Qh1+ {[%clk 0:00:31]} 41. Kf2 {[%clk 0:01:19]}  Qc1 {[%clk 0:00:30]} 42. Qd3+ {[%clk 0:01:18]}  Kh5 {[%clk 0:00:27]} 43. Qb3 {[%clk 0:01:14]}  Qd2+ {[%clk 0:00:24]} 44. Kg1 {[%clk 0:01:12]}  Kh4 {[%clk 0:00:14]} 45. Kh2 {[%clk 0:01:12]}  Qe1 {[%clk 0:00:13]} 46. Qd3 {[%clk 0:00:58]}  Qg3+ {[%clk 0:00:11]} 47. Kg1 {[%clk 0:00:59]}  Qe1+ {[%clk 0:00:11]} 48. Qf1 {[%clk 0:00:59]}  Qc3 {[%clk 0:00:10]} 49. Qf2+ {[%clk 0:00:57]}  Kh5 {[%clk 0:00:10]} 50. g4+ {[%clk 0:00:51]}  Kg6 {[%clk 0:00:11]} 51. Qe2 {[%clk 0:00:51]}  Qxa3 {[%clk 0:00:10]} 52. b5 {[%clk 0:00:52]}  Qb4 {[%clk 0:00:09]} 53. Kf2 {[%clk 0:00:51]}  Qb1 {[%clk 0:00:08]} 54. Kg2 {[%clk 0:00:50]}  h5 {[%clk 0:00:08]} 55. gxh5+ {[%clk 0:00:50]}  Kxh5 {[%clk 0:00:09]} 56. f4+ {[%clk 0:00:51]}  Kh6 {[%clk 0:00:09]} 57. fxg5+ {[%clk 0:00:49]}  Kxg5 {[%clk 0:00:10]} 58. Qg4+ {[%clk 0:00:49]}  Kf6 {[%clk 0:00:10]} 59. Qf4+ {[%clk 0:00:49]}  Kg7 {[%clk 0:00:09]} 60. Qg5+ {[%clk 0:00:49]}  Kf8 {[%clk 0:00:06]} 61. Qd8+ {[%clk 0:00:47]}  Kg7 {[%clk 0:00:06]} 62. b6 {[%clk 0:00:47]}  Qe4+ {[%clk 0:00:06]} 63. Kf2 {[%clk 0:00:47]}  Qc2+ {[%clk 0:00:06]} 64. Ke1 {[%clk 0:00:47]}  Qc1+ {[%clk 0:00:06]} 65. Ke2 {[%clk 0:00:48]}  Qc2+ {[%clk 0:00:06]} 66. Kf3 {[%clk 0:00:49]}  Qe4+ {[%clk 0:00:07]} 67. Kf2 {[%clk 0:00:49]}  Qc2+ {[%clk 0:00:07]} 68. Kg3 {[%clk 0:00:50]}  Qg6+ {[%clk 0:00:05]} 69. Kh4 {[%clk 0:00:46]}  Qe4+ {[%clk 0:00:02]} 70. Kh5 {[%clk 0:00:43]}  Qg6+ {[%clk 0:00:02]} 71. Kh4 {[%clk 0:00:43]}  Qe4+ {[%clk 0:00:03]} 72. Kg5 {[%clk 0:00:43]}  Qg6+ {[%clk 0:00:03]} 73. Kf4 {[%clk 0:00:44]}  Qe4+ {[%clk 0:00:03]} 74. Kg3 {[%clk 0:00:44]}  Qxe3+ {[%clk 0:00:04]} 75. Kg4 {[%clk 0:00:45]}  Qxd4+ {[%clk 0:00:03]} 76. Kf3 {[%clk 0:00:45]}  Qd3+ {[%clk 0:00:04]} 77. Kf4 {[%clk 0:00:46]}  Qd4+ {[%clk 0:00:03]} 78. Kg3 {[%clk 0:00:46]}  Qe3+ {[%clk 0:00:03]} 79. Kg4 {[%clk 0:00:46]}  Qe4+ {[%clk 0:00:03]} 80. Kh5 {[%clk 0:00:47]}  Qg6+ {[%clk 0:00:03]} 81. Kh4 {[%clk 0:00:47]}  Qe4+ {[%clk 0:00:03]} 82. Kh5 {[%clk 0:00:47]}  Qg6+ {[%clk 0:00:03]} 83. Kh4 {[%clk 0:00:48]}  Qe4+ {[%clk 0:00:03]} 84. Kg3 {[%clk 0:00:49]}  Qe3+ {[%clk 0:00:03]} 85. Kg2 {[%clk 0:00:49]}  Qe2+ {[%clk 0:00:04]} 86. Kg3 {[%clk 0:00:50]}  Qe3+ {[%clk 0:00:04]} 1/2-1/2


[Site "https://www.chess.com"]

[Event "Titled Tuesday Blitz November 22 Late 2022"]
[White "Necromon"]
[Black "Risteski, Emil"]
[BlackFideId "15005267"]
[WhiteElo "2475"]
[BlackElo "2251"]
[Result "1-0"]
[Round "07"]
[TimeControl "180+1"]
[Date "2022.11.23"]
[WhiteClock "0:00:30"]
[BlackClock "0:00:08"]

1. Nf3 {[%clk 0:03:00]}  d5 {[%clk 0:02:58]} 2. g3 {[%clk 0:02:59]}  Nf6 {[%clk 0:02:49]} 3. Bg2 {[%clk 0:02:59]}  e6 {[%clk 0:02:49]} 4. O-O {[%clk 0:02:58]}  Be7 {[%clk 0:02:50]} 5. c4 {[%clk 0:02:58]}  O-O {[%clk 0:02:45]} 6. b3 {[%clk 0:02:50]}  d4 {[%clk 0:02:42]} 7. Bb2 {[%clk 0:02:49]}  c5 {[%clk 0:02:43]} 8. b4 {[%clk 0:02:49]}  Nc6 {[%clk 0:02:38]} 9. bxc5 {[%clk 0:02:44]}  e5 {[%clk 0:02:38]} 10. d3 {[%clk 0:02:44]}  Nd7 {[%clk 0:02:37]} 11. Nbd2 {[%clk 0:02:43]}  Nxc5 {[%clk 0:02:36]} 12. Nb3 {[%clk 0:02:34]}  Na4 {[%clk 0:02:35]} 13. Qc2 {[%clk 0:02:26]}  Rb8 {[%clk 0:02:30]} 14. Rad1 {[%clk 0:02:20]}  Bd7 {[%clk 0:02:24]} 15. Ba1 {[%clk 0:02:18]}  Ba3 {[%clk 0:01:37]} 16. e3 {[%clk 0:02:11]}  dxe3 {[%clk 0:01:35]} 17. fxe3 {[%clk 0:02:10]}  Qe7 {[%clk 0:01:33]} 18. d4 {[%clk 0:01:56]}  exd4 {[%clk 0:01:22]} 19. exd4 {[%clk 0:01:55]}  Bg4 {[%clk 0:01:20]} 20. Rde1 {[%clk 0:01:46]}  Qd7 {[%clk 0:01:15]} 21. d5 {[%clk 0:01:44]}  Nb4 {[%clk 0:01:07]} 22. Qd2 {[%clk 0:01:41]}  b5 {[%clk 0:01:05]} 23. Ne5 {[%clk 0:01:31]}  Qc8 {[%clk 0:01:04]} 24. c5 {[%clk 0:01:28]}  Nxc5 {[%clk 0:00:55]} 25. Nxg4 {[%clk 0:01:22]}  Qxg4 {[%clk 0:00:38]} 26. Nxc5 {[%clk 0:01:19]}  Rbc8 {[%clk 0:00:37]} 27. Ne4 {[%clk 0:00:57]}  Nc2 {[%clk 0:00:34]} 28. Rd1 {[%clk 0:00:50]}  Nxa1 {[%clk 0:00:28]} 29. Rxa1 {[%clk 0:00:50]}  a5 {[%clk 0:00:25]} 30. Rab1 {[%clk 0:00:39]}  Bb4 {[%clk 0:00:24]} 31. Qd4 {[%clk 0:00:38]}  Rc2 {[%clk 0:00:23]} 32. Nf6+ {[%clk 0:00:36]}  Kh8 {[%clk 0:00:10]} 33. Qxg4 {[%clk 0:00:33]}  gxf6 {[%clk 0:00:11]} 34. Qf5 {[%clk 0:00:31]}  Bc5+ {[%clk 0:00:07]} 35. Kh1 {[%clk 0:00:31]}  Rf2 {[%clk 0:00:08]} 36. Rxf2 {[%clk 0:00:30]}  Bxf2 {[%clk 0:00:08]} 37. Be4 {[%clk 0:00:30]} 1-0


[Site "https://www.chess.com"]

[Event "Titled Tuesday Blitz November 22 Late 2022"]
[White "Novikova, Galina"]
[Black "Desideri, Ricardo Maruchi"]
[WhiteFideId "4157095"]
[BlackFideId "2110440"]
[WhiteElo "1973"]
[BlackElo "1945"]
[Result "1-0"]
[Round "07"]
[TimeControl "180+1"]
[Date "2022.11.23"]
[WhiteClock "0:01:01"]
[BlackClock "0:00:07"]

1. e4 {[%clk 0:02:51]}  c5 {[%clk 0:02:58]} 2. Nf3 {[%clk 0:02:51]}  d6 {[%clk 0:02:57]} 3. d4 {[%clk 0:02:51]}  cxd4 {[%clk 0:02:56]} 4. Nxd4 {[%clk 0:02:52]}  Nf6 {[%clk 0:02:57]} 5. Nc3 {[%clk 0:02:53]}  a6 {[%clk 0:02:57]} 6. h3 {[%clk 0:02:54]}  e6 {[%clk 0:02:56]} 7. g4 {[%clk 0:02:53]}  b5 {[%clk 0:02:56]} 8. Bg2 {[%clk 0:02:53]}  Bb7 {[%clk 0:02:57]} 9. g5 {[%clk 0:02:54]}  Nfd7 {[%clk 0:02:54]} 10. h4 {[%clk 0:02:54]}  Be7 {[%clk 0:02:49]} 11. Be3 {[%clk 0:02:53]}  Nb6 {[%clk 0:02:40]} 12. b3 {[%clk 0:02:51]}  N8d7 {[%clk 0:02:39]} 13. O-O {[%clk 0:02:40]}  Rc8 {[%clk 0:02:37]} 14. Nce2 {[%clk 0:02:38]}  Ne5 {[%clk 0:02:32]} 15. Ng3 {[%clk 0:02:36]}  Ng6 {[%clk 0:02:26]} 16. h5 {[%clk 0:02:30]}  Nh4 {[%clk 0:02:26]} 17. Qg4 {[%clk 0:02:26]}  Nxg2 {[%clk 0:02:25]} 18. Kxg2 {[%clk 0:02:27]}  O-O {[%clk 0:02:17]} 19. g6 {[%clk 0:02:21]}  fxg6 {[%clk 0:01:40]} 20. hxg6 {[%clk 0:02:10]}  Qd7 {[%clk 0:01:13]} 21. gxh7+ {[%clk 0:02:06]}  Kh8 {[%clk 0:01:12]} 22. Qxe6 {[%clk 0:02:00]}  Bf6 {[%clk 0:00:56]} 23. Rad1 {[%clk 0:01:47]}  Rce8 {[%clk 0:00:42]} 24. Qxd7 {[%clk 0:01:46]}  Nxd7 {[%clk 0:00:42]} 25. f3 {[%clk 0:01:44]}  d5 {[%clk 0:00:38]} 26. Ndf5 {[%clk 0:01:15]}  Ne5 {[%clk 0:00:30]} 27. exd5 {[%clk 0:01:11]}  Ng6 {[%clk 0:00:19]} 28. Bc5 {[%clk 0:01:01]}  Nf4+ {[%clk 0:00:11]} 29. Kh2 {[%clk 0:01:01]}  Rf7 {[%clk 0:00:08]} 30. Nd6 {[%clk 0:01:01]}  Re5 {[%clk 0:00:08]} 31. Nxf7+ {[%clk 0:01:01]}  Kxh7 {[%clk 0:00:07]} 32. Nxe5 {[%clk 0:01:01]} 1-0


[Site "https://www.chess.com"]

[Event "Titled Tuesday Blitz November 22 Late 2022"]
[White "Oro, Faustino"]
[Black "Jimenez Almeida, Luis David"]
[WhiteFideId "20000197"]
[BlackFideId "22242244"]
[WhiteElo "2066"]
[BlackElo "2158"]
[Result "1-0"]
[Round "07"]
[TimeControl "180+1"]
[Date "2022.11.23"]
[WhiteClock "0:00:10"]
[BlackClock "0:00:07"]

1. d4 {[%clk 0:03:00]}  g6 {[%clk 0:02:59]} 2. e4 {[%clk 0:02:58]}  Bg7 {[%clk 0:02:59]} 3. Nc3 {[%clk 0:02:57]}  c5 {[%clk 0:02:56]} 4. Nf3 {[%clk 0:02:53]}  Nc6 {[%clk 0:02:55]} 5. d5 {[%clk 0:02:50]}  Nd4 {[%clk 0:02:55]} 6. Nxd4 {[%clk 0:02:50]}  cxd4 {[%clk 0:02:56]} 7. Ne2 {[%clk 0:02:50]}  Qb6 {[%clk 0:02:56]} 8. Qd3 {[%clk 0:02:47]}  d6 {[%clk 0:02:54]} 9. g3 {[%clk 0:02:43]}  Bd7 {[%clk 0:02:53]} 10. Bg2 {[%clk 0:02:09]}  Bb5 {[%clk 0:02:50]} 11. Qb3 {[%clk 0:02:09]}  Qa6 {[%clk 0:02:44]} 12. Nf4 {[%clk 0:02:02]}  Rc8 {[%clk 0:02:36]} 13. a4 {[%clk 0:01:43]}  Bc4 {[%clk 0:02:33]} 14. Qa3 {[%clk 0:01:43]}  Qb6 {[%clk 0:02:09]} 15. Nd3 {[%clk 0:01:38]}  Ba6 {[%clk 0:02:07]} 16. Nb4 {[%clk 0:01:24]}  Nf6 {[%clk 0:01:55]} 17. Nxa6 {[%clk 0:01:21]}  Qxa6 {[%clk 0:01:56]} 18. Bf1 {[%clk 0:01:20]}  Qb6 {[%clk 0:01:49]} 19. Bd3 {[%clk 0:01:19]}  O-O {[%clk 0:01:45]} 20. O-O {[%clk 0:01:19]}  Nd7 {[%clk 0:01:45]} 21. Bd2 {[%clk 0:01:10]}  Ne5 {[%clk 0:01:37]} 22. Rfd1 {[%clk 0:00:49]}  Nc4 {[%clk 0:00:50]} 23. Qa2 {[%clk 0:00:34]}  Ne5 {[%clk 0:00:45]} 24. Kg2 {[%clk 0:00:25]}  Qc7 {[%clk 0:00:44]} 25. Rac1 {[%clk 0:00:23]}  Qd7 {[%clk 0:00:41]} 26. Be2 {[%clk 0:00:20]}  h5 {[%clk 0:00:34]} 27. h3 {[%clk 0:00:21]}  f5 {[%clk 0:00:32]} 28. f4 {[%clk 0:00:20]}  fxe4 {[%clk 0:00:21]} 29. fxe5 {[%clk 0:00:20]}  Bxe5 {[%clk 0:00:22]} 30. Rf1 {[%clk 0:00:18]}  Rxf1 {[%clk 0:00:19]} 31. Bxf1 {[%clk 0:00:16]}  Qf5 {[%clk 0:00:19]} 32. Be2 {[%clk 0:00:13]}  e3 {[%clk 0:00:20]} 33. Be1 {[%clk 0:00:14]}  Rxc2 {[%clk 0:00:18]} 34. Rxc2 {[%clk 0:00:14]}  Qxc2 {[%clk 0:00:19]} 35. Qc4 {[%clk 0:00:15]}  Qe4+ {[%clk 0:00:18]} 36. Bf3 {[%clk 0:00:14]}  Qb1 {[%clk 0:00:18]} 37. Qe2 {[%clk 0:00:12]}  Qa2 {[%clk 0:00:14]} 38. Bb4 {[%clk 0:00:10]}  Qxa4 {[%clk 0:00:13]} 39. Ba3 {[%clk 0:00:10]}  Qb3 {[%clk 0:00:12]} 40. Be4 {[%clk 0:00:10]}  Kg7 {[%clk 0:00:12]} 41. Qf3 {[%clk 0:00:10]}  Qb5 {[%clk 0:00:07]} 42. g4 {[%clk 0:00:09]}  hxg4 {[%clk 0:00:07]} 43. hxg4 {[%clk 0:00:10]}  Qd7 {[%clk 0:00:06]} 44. Bb4 {[%clk 0:00:09]}  b6 {[%clk 0:00:06]} 45. Ba3 {[%clk 0:00:09]}  a5 {[%clk 0:00:06]} 46. Kh3 {[%clk 0:00:07]}  b5 {[%clk 0:00:07]} 47. b3 {[%clk 0:00:07]}  b4 {[%clk 0:00:07]} 48. Bb2 {[%clk 0:00:07]}  Qc8 {[%clk 0:00:08]} 49. Qe2 {[%clk 0:00:06]}  Qh8+ {[%clk 0:00:08]} 50. Kg2 {[%clk 0:00:05]}  Qh2+ {[%clk 0:00:08]} 51. Kf1 {[%clk 0:00:05]}  Qf4+ {[%clk 0:00:09]} 52. Qf3 {[%clk 0:00:05]}  Qh2 {[%clk 0:00:09]} 53. Qg2 {[%clk 0:00:05]}  Qf4+ {[%clk 0:00:08]} 54. Ke2 {[%clk 0:00:05]}  d3+ {[%clk 0:00:05]} 55. Kxd3 {[%clk 0:00:04]}  Qf6 {[%clk 0:00:02]} 56. Bxe5 {[%clk 0:00:04]}  Qxe5 {[%clk 0:00:03]} 57. Kxe3 {[%clk 0:00:05]}  Qc3+ {[%clk 0:00:04]} 58. Bd3 {[%clk 0:00:06]}  Qxb3 {[%clk 0:00:03]} 59. Qc2 {[%clk 0:00:06]}  Qxc2 {[%clk 0:00:01]} 60. Bxc2 {[%clk 0:00:06]}  Kf6 {[%clk 0:00:01]} 61. Kd4 {[%clk 0:00:07]}  Kg5 {[%clk 0:00:02]} 62. Bd1 {[%clk 0:00:07]}  Kf4 {[%clk 0:00:02]} 63. Kc4 {[%clk 0:00:07]}  Ke5 {[%clk 0:00:02]} 64. Bf3 {[%clk 0:00:07]}  g5 {[%clk 0:00:03]} 65. Kb5 {[%clk 0:00:07]}  Kd4 {[%clk 0:00:03]} 66. Kxa5 {[%clk 0:00:07]}  b3 {[%clk 0:00:03]} 67. Bd1 {[%clk 0:00:06]}  b2 {[%clk 0:00:04]} 68. Bc2 {[%clk 0:00:07]}  Kc3 {[%clk 0:00:04]} 69. Bf5 {[%clk 0:00:07]}  Kd2 {[%clk 0:00:04]} 70. Kb5 {[%clk 0:00:07]}  Kc1 {[%clk 0:00:04]} 71. Kc6 {[%clk 0:00:07]}  b1=Q {[%clk 0:00:04]} 72. Bxb1 {[%clk 0:00:08]}  Kxb1 {[%clk 0:00:05]} 73. Kd7 {[%clk 0:00:09]}  Kc2 {[%clk 0:00:06]} 74. Kxe7 {[%clk 0:00:09]}  Kd3 {[%clk 0:00:06]} 75. Kxd6 {[%clk 0:00:10]}  Ke4 {[%clk 0:00:07]} 76. Ke6 {[%clk 0:00:10]} 1-0


[Site "https://www.chess.com"]